fUSD/lending_fUSD_20260520
["ID","MTS","AMOUNT","RATE_DAILY","PERIOD"]
[422664843,1779223850000,-429.35,0.000168,2]
[422664832,1779223850000,-500.0,0.00016459,2]
[422664810,1779223850000,-2080.17592889,0.00016295,2]
[422664838,1779223850000,-167.646,0.000165,2]
[422664865,1779223850000,-500.0,0.00017257,2]
[422664812,1779223850000,-166.82,0.00016349,2]
[422664811,1779223850000,-1252.0,0.00016308,2]
[422664806,1779223850000,-1041.42,0.00016179,2]
[422664805,1779223850000,-6623.73,0.00016116,2]
[422664808,1779223850000,-500.0,0.00016185,2]
[422664807,1779223850000,-350.0,0.0001618,2]
[422664804,1779223850000,-300.0,0.00016115,2]
[422664809,1779223850000,-156.587,0.00016295,2]
[422664814,1779223850000,-803.1,0.000164,2]
[422664824,1779223850000,-151.0,0.00016438,2]
[422664825,1779223850000,-151.0,0.00016438,2]
[422664815,1779223850000,-306.49569417,0.00016438,2]
[422664818,1779223850000,-151.0,0.00016438,2]
[422664819,1779223850000,-151.0,0.00016438,2]
[422664817,1779223850000,-151.0,0.00016438,2]
[422664816,1779223850000,-675.4,0.00016438,2]
[422664813,1779223850000,-300.0,0.00016399,2]
[422664821,1779223850000,-151.0,0.00016438,2]
[422664820,1779223850000,-151.0,0.00016438,2]
[422664822,1779223850000,-151.0,0.00016438,2]
[422664823,1779223850000,-152.96914,0.00016438,2]
[422664827,1779223850000,-151.0,0.00016438,2]
[422664833,1779223850000,-300.0,0.00016473,2]
[422664839,1779223850000,-215.15951567,0.00016635,2]
[422664834,1779223850000,-248.58448134,0.00016473,2]
[422664826,1779223850000,-151.0,0.00016438,2]
[422664830,1779223850000,-151.0,0.00016438,2]
[422664828,1779223850000,-151.0,0.00016438,2]
[422664836,1779223850000,-2000.0,0.0001649,2]
[422664868,1779223850000,-500.0,0.00017257,2]
[422664917,1779223850000,-1270.0,0.00018,2]
[422664867,1779223850000,-500.0,0.00017257,2]
[422664895,1779223850000,-26811.0,0.00017265,2]
[422664904,1779223850000,-618.59521715,0.000177,2]
[422664913,1779223850000,-927.0,0.00018,2]
[422664912,1779223850000,-808.38234577,0.00018,2]
[422664914,1779223850000,-625.0,0.00018,2]
[422664905,1779223850000,-2129.0,0.00017828,2]
[422664903,1779223850000,-641.0,0.00017673,2]
[422664906,1779223850000,-500.0,0.00017829,2]
[422664907,1779223850000,-500.0,0.00017973,2]
[422664909,1779223850000,-6163.16745885,0.00018,2]
[422664908,1779223850000,-300.0,0.00017999,2]
[422664910,1779223850000,-803.1,0.00018,2]
[422664915,1779223850000,-3544.0,0.00018,2]
[422664902,1779223850000,-334.0,0.00017673,2]
[422664918,1779223850000,-930.0,0.00018,2]
[422664926,1779223850000,-390.0,0.0001805,2]
[422664921,1779223850000,-160.0,0.0001805,2]
[422664925,1779223850000,-251.0,0.0001805,2]
[422664927,1779223850000,-500.0,0.00018103,2]
[422664922,1779223850000,-328.0,0.0001805,2]
[422664923,1779223850000,-164.0,0.0001805,2]
[422664919,1779223850000,-165.0,0.0001805,2]
[422664920,1779223850000,-300.0,0.0001805,2]
[422664924,1779223850000,-161.61702342,0.0001805,2]
[422664929,1779223850000,-167.37842771,0.00018285,2]
[422664930,1779223850000,-297.5966229,0.00018368,2]
[422664928,1779223850000,-808.38234577,0.000182,2]
[422664866,1779223850000,-500.0,0.00017257,2]
[422664916,1779223850000,-1354.0,0.00018,2]
[422664893,1779223850000,-850.0,0.00017257,2]
[422664911,1779223850000,-350.0,0.00018,2]
[422664898,1779223850000,-600.0,0.00017466,7]
[422664899,1779223850000,-1300.0,0.00017466,7]
[422664876,1779223850000,-500.0,0.00017257,2]
[422664874,1779223850000,-500.0,0.00017257,2]
[422664875,1779223850000,-500.0,0.00017257,2]
[422664873,1779223850000,-500.0,0.00017257,2]
[422664870,1779223850000,-500.0,0.00017257,2]
[422664878,1779223850000,-500.0,0.00017257,2]
[422664872,1779223850000,-500.0,0.00017257,2]
[422664871,1779223850000,-500.0,0.00017257,2]
[422664877,1779223850000,-500.0,0.00017257,2]
[422664879,1779223850000,-500.0,0.00017257,2]
[422664881,1779223850000,-500.0,0.00017257,2]
[422664880,1779223850000,-500.0,0.00017257,2]
[422664882,1779223850000,-500.0,0.00017257,2]
[422664883,1779223850000,-500.0,0.00017257,2]
[422664869,1779223850000,-500.0,0.00017257,2]
[422664896,1779223850000,-500.0,0.00017281,2]
[422664897,1779223850000,-1751.81405339,0.00017391,2]
[422664900,1779223850000,-500.0,0.00017555,2]
[422664901,1779223850000,-863.57261544,0.00017629,2]
[422664885,1779223850000,-500.0,0.00017257,2]
[422664892,1779223850000,-500.0,0.00017257,2]
[422664886,1779223850000,-500.0,0.00017257,2]
[422664894,1779223850000,-165.0,0.0001726,2]
[422664887,1779223850000,-500.0,0.00017257,2]
[422664890,1779223850000,-500.0,0.00017257,2]
[422664884,1779223850000,-500.0,0.00017257,2]
[422664888,1779223850000,-500.0,0.00017257,2]
[422664889,1779223850000,-500.0,0.00017257,2]
[422664891,1779223850000,-500.0,0.00017257,2]
[422664968,1779223851000,-102821.39,0.00019968,2]
[422664980,1779223851000,-164.0,0.0002005,2]
[422664977,1779223851000,-150.61231671,0.0002,20]
[422664970,1779223851000,-472.3965503,0.0002,2]
[422664971,1779223851000,-2866.495056,0.0002,2]
[422664962,1779223851000,-222.17773961,0.00019473,2]
[422664967,1779223851000,-2310.03,0.00019968,2]
[422664972,1779223851000,-400.0,0.0002,2]
[422664969,1779223851000,-3313.18,0.00019968,2]
[422664960,1779223851000,-263.721482,0.00019178,2]
[422664963,1779223851000,-2918.0,0.00019485,2]
[422664975,1779223851000,-2386.0,0.0002,2]
[422664973,1779223851000,-1095.0,0.0002,2]
[422664979,1779223851000,-328.0,0.0002005,2]
[422664986,1779223851000,-150.0,0.00020136,2]
[422664976,1779223851000,-3806.18,0.0002,2]
[422664978,1779223851000,-300.0,0.0002005,2]
[422664990,1779223851000,-150.0,0.00020136,2]
[422664984,1779223851000,-150.0,0.00020136,2]
[422664988,1779223851000,-150.0,0.00020136,2]
[422664993,1779223851000,-150.0,0.00020136,2]
[422664981,1779223851000,-251.0,0.0002005,2]
[422664987,1779223851000,-150.0,0.00020136,2]
[422664982,1779223851000,-390.0,0.0002005,2]
[422664985,1779223851000,-150.0,0.00020136,2]
[422664989,1779223851000,-150.0,0.00020136,2]
[422664991,1779223851000,-150.0,0.00020136,2]
[422664992,1779223851000,-150.0,0.00020136,2]
[422664974,1779223851000,-200.0,0.0002,10]
[422664966,1779223851000,-803.1,0.000198,2]
[422664934,1779223851000,-808.38234577,0.000185,2]
[422664964,1779223851000,-1300.0,0.00019658,7]
[422664939,1779223851000,-9035.0,0.00018727,2]
[422664994,1779223851000,-2550.0,0.00020212,2]
[422664931,1779223851000,-500.0,0.00018377,2]
[422664933,1779223851000,-382.3,0.0001841,2]
[422664932,1779223851000,-808.38234577,0.000184,2]
[422664937,1779223851000,-500.0,0.00018651,2]
[422664938,1779223851000,-808.38234577,0.000187,2]
[422664936,1779223851000,-1300.0,0.00018562,7]
[422664935,1779223851000,-600.0,0.00018562,7]
[422664940,1779223851000,-165.0,0.00018734,2]
[422664948,1779223851000,-48254.81636108,0.00019,2]
[422664946,1779223851000,-179.0,0.00018934,2]
[422664945,1779223851000,-500.0,0.00018925,2]
[422664941,1779223851000,-1032.32173242,0.00018734,2]
[422664955,1779223851000,-390.0,0.0001905,2]
[422664942,1779223851000,-491.22905312,0.00018777,2]
[422664951,1779223851000,-300.0,0.0001905,2]
[422664949,1779223851000,-2410.74147271,0.00019,2]
[422664947,1779223851000,-300.0,0.00018999,2]
[422664943,1779223851000,-206.4,0.000188,2]
[422664952,1779223851000,-328.0,0.0001905,2]
[422664950,1779223851000,-325.55406919,0.00019,2]
[422664954,1779223851000,-251.0,0.0001905,2]
[422664958,1779223851000,-216.916581,0.00019178,2]
[422664956,1779223851000,-504.73,0.00019178,2]
[422664957,1779223851000,-151.0,0.00019178,2]
[422664965,1779223851000,-186.58594873,0.00019778,21]
[422664953,1779223851000,-164.0,0.0001905,2]
[422664961,1779223851000,-500.0,0.00019199,2]
[422664959,1779223851000,-151.0,0.00019178,2]
[422664944,1779223851000,-165.0,0.00018885,2]
[422664995,1779223851000,-900.0,0.00020212,7]
[422664983,1779223851000,-300.0,0.000201,10]
[422665007,1779223851000,-382.3,0.00020381,2]
[422665029,1779223851000,-163.0,0.00021,2]
[422665034,1779223851000,-300.0,0.0002105,2]
[422665032,1779223851000,-300.0,0.00021,2]
[422665036,1779223851000,-164.0,0.0002105,2]
[422665035,1779223851000,-328.0,0.0002105,2]
[422665038,1779223851000,-390.0,0.0002105,2]
[422665037,1779223851000,-251.0,0.0002105,2]
[422665043,1779223851000,-1197.4983951,0.00021487,2]
[422665044,1779223851000,-10234.796639,0.00021487,2]
[422665039,1779223851000,-231.7,0.00021205,2]
[422665042,1779223851000,-3592.4951851,0.00021477,2]
[422665041,1779223851000,-6466.77,0.0002137,2]
[422665040,1779223851000,-378.81,0.00021273,2]
[422665046,1779223851000,-1300.0,0.0002185,7]
[422665056,1779223851000,-251.0,0.0002205,2]
[422665049,1779223851000,-152.577983,0.00021918,2]
[422665058,1779223851000,-324.0,0.00022192,7]
[422665050,1779223851000,-450.0,0.00022,2]
[422665045,1779223851000,-803.1,0.000218,2]
[422665054,1779223851000,-328.0,0.0002205,2]
[422665048,1779223851000,-5000.0,0.00021918,2]
[422665047,1779223851000,-3806.18,0.00021857,2]
[422665052,1779223851000,-5231.64,0.00022,2]
[422665055,1779223851000,-164.0,0.0002205,2]
[422665051,1779223851000,-324.0,0.00022,2]
[422665053,1779223851000,-300.0,0.0002205,2]
[422665060,1779223851000,-186.4204666,0.00022407,2]
[422665059,1779223851000,-382.3,0.00022353,2]
[422664997,1779223851000,-200.0,0.00020213,2]
[422665023,1779223851000,-625.0,0.00021,2]
[422665033,1779223851000,-250.05000564,0.00021,2]
[422665057,1779223851000,-390.0,0.0002205,2]
[422665027,1779223851000,-500.0,0.00021,2]
[422664999,1779223851000,-200.0,0.00020213,2]
[422665030,1779223851000,-163.0,0.00021,2]
[422665001,1779223851000,-200.0,0.00020213,2]
[422664998,1779223851000,-200.0,0.00020213,2]
[422664996,1779223851000,-200.0,0.00020213,2]
[422665003,1779223851000,-200.0,0.00020213,2]
[422665006,1779223851000,-200.0,0.00020379,2]
[422665005,1779223851000,-179.026972,0.00020304,2]
[422665004,1779223851000,-200.0,0.00020213,2]
[422665002,1779223851000,-200.0,0.00020213,2]
[422665008,1779223851000,-350.0,0.00020396,2]
[422665011,1779223851000,-350.0,0.00020396,2]
[422665010,1779223851000,-350.0,0.00020396,2]
[422665012,1779223851000,-350.0,0.00020396,2]
[422665014,1779223851000,-350.0,0.00020396,2]
[422665000,1779223851000,-200.0,0.00020213,2]
[422665028,1779223851000,-930.0,0.00021,2]
[422665025,1779223851000,-1233.12,0.00021,2]
[422665013,1779223851000,-350.0,0.00020396,2]
[422665022,1779223851000,-927.0,0.00021,2]
[422665026,1779223851000,-1270.0,0.00021,2]
[422665031,1779223851000,-163.0,0.00021,2]
[422665015,1779223851000,-350.0,0.00020396,2]
[422665019,1779223851000,-863.57261544,0.0002073,2]
[422665024,1779223851000,-3544.0,0.00021,2]
[422665017,1779223851000,-310.70024772,0.00020402,21]
[422665020,1779223851000,-600.0,0.00020754,7]
[422665018,1779223851000,-12649.0,0.00020599,2]
[422665021,1779223851000,-250.0,0.00021,10]
[422665016,1779223851000,-231.0,0.00020396,2]
[422665009,1779223851000,-350.0,0.00020396,2]
[422665104,1779223852000,-160.0,0.00024,3]
[422665103,1779223852000,-160.0,0.00024,7]
[422665111,1779223852000,-10769.01041443,0.0002429,7]
[422665112,1779223852000,-382.3,0.00024324,2]
[422665113,1779223852000,-5747.89086645,0.00024397,2]
[422665102,1779223852000,-208.58623393,0.00024,7]
[422665099,1779223852000,-863.57261544,0.0002383,2]
[422665100,1779223852000,-803.1,0.00024,7]
[422665097,1779223852000,-1587.0,0.00023536,3]
[422665096,1779223852000,-180.25911624,0.000234,2]
[422665089,1779223852000,-151.0,0.00023288,2]
[422665091,1779223852000,-500.0,0.000234,2]
[422665105,1779223852000,-625.0,0.00024,2]
[422665101,1779223852000,-500.0,0.00024,2]
[422665107,1779223852000,-262.065,0.00024,2]
[422665116,1779223852000,-151.0,0.00024658,2]
[422665106,1779223852000,-3544.0,0.00024,2]
[422665108,1779223852000,-1300.0,0.00024042,7]
[422665109,1779223852000,-163.0,0.00024053,3]
[422665124,1779223852000,-500.0,0.00024658,2]
[422665115,1779223852000,-1000.0,0.00024658,2]
[422665123,1779223852000,-478.81,0.00024658,2]
[422665125,1779223852000,-500.0,0.00024658,2]
[422665117,1779223852000,-151.0,0.00024658,2]
[422665119,1779223852000,-151.0,0.00024658,2]
[422665126,1779223852000,-500.0,0.00024658,2]
[422665118,1779223852000,-151.0,0.00024658,2]
[422665114,1779223852000,-2314.0,0.00024496,3]
[422665122,1779223852000,-1122.7,0.00024658,2]
[422665092,1779223852000,-500.0,0.000234,2]
[422665110,1779223852000,-328.0,0.00024164,7]
[422665090,1779223852000,-246.09,0.00023288,2]
[422665071,1779223852000,-364.0,0.00023,30]
[422665093,1779223852000,-500.0,0.000234,2]
[422665120,1779223852000,-749.6,0.00024658,2]
[422665070,1779223852000,-4000.0,0.00023,20]
[422665063,1779223852000,-491.22921256,0.00022407,2]
[422665069,1779223852000,-1012.73496005,0.00023,2]
[422665066,1779223852000,-20169.32651765,0.00022718,2]
[422665061,1779223852000,-186.42046659,0.00022407,2]
[422665064,1779223852000,-491.22921256,0.00022407,2]
[422665062,1779223852000,-491.22921258,0.00022407,2]
[422665065,1779223852000,-11075.0,0.00022659,2]
[422665067,1779223852000,-163.0,0.00022818,3]
[422665068,1779223852000,-600.0,0.00022946,7]
[422665072,1779223852000,-215.15951567,0.00023,7]
[422665077,1779223852000,-262.0,0.0002305,2]
[422665074,1779223852000,-318.72908396,0.0002305,2]
[422665088,1779223852000,-151.0,0.00023288,2]
[422665078,1779223852000,-403.0,0.0002305,2]
[422665076,1779223852000,-174.79072737,0.0002305,2]
[422665080,1779223852000,-150.0,0.00023136,2]
[422665081,1779223852000,-150.0,0.00023136,2]
[422665073,1779223852000,-324.0,0.00023014,7]
[422665079,1779223852000,-500.0,0.00023068,2]
[422665083,1779223852000,-2314.0,0.00023216,3]
[422665085,1779223852000,-151.0,0.00023288,2]
[422665084,1779223852000,-151.0,0.00023288,2]
[422665082,1779223852000,-150.0,0.00023136,2]
[422665086,1779223852000,-151.0,0.00023288,2]
[422665087,1779223852000,-151.0,0.00023288,2]
[422665095,1779223852000,-500.0,0.000234,2]
[422665098,1779223852000,-3806.18,0.00023714,2]
[422665094,1779223852000,-500.0,0.000234,2]
[422665075,1779223852000,-340.0,0.0002305,2]
[422665121,1779223852000,-362.1644251,0.00024658,2]
[422665187,1779223852000,-400.0,0.00026125,2]
[422665127,1779223852000,-500.0,0.00024658,2]
[422665156,1779223852000,-5530.0,0.000256,3]
[422665163,1779223852000,-1122.7,0.00025811,7]
[422665167,1779223852000,-5453.24136555,0.00026,2]
[422665166,1779223852000,-550.0,0.00026,2]
[422665169,1779223852000,-1032.32173242,0.00026025,2]
[422665180,1779223852000,-1250.0,0.00026125,2]
[422665179,1779223852000,-1250.0,0.00026125,2]
[422665181,1779223852000,-1250.0,0.00026125,2]
[422665168,1779223852000,-432.6849197,0.00026,30]
[422665172,1779223852000,-1122.7,0.00026099,7]
[422665170,1779223852000,-165.0,0.00026027,2]
[422665176,1779223852000,-1250.0,0.00026125,2]
[422665173,1779223852000,-1250.0,0.00026125,2]
[422665175,1779223852000,-1250.0,0.00026125,2]
[422665160,1779223852000,-378.81,0.00025786,2]
[422665171,1779223852000,-212.0,0.00026027,2]
[422665174,1779223852000,-1250.0,0.00026125,2]
[422665178,1779223852000,-1250.0,0.00026125,2]
[422665182,1779223852000,-877.0,0.00026125,2]
[422665185,1779223852000,-400.0,0.00026125,2]
[422665186,1779223852000,-400.0,0.00026125,2]
[422665184,1779223852000,-400.0,0.00026125,2]
[422665192,1779223852000,-500.0,0.00026134,2]
[422665183,1779223852000,-400.0,0.00026125,2]
[422665191,1779223852000,-532.0,0.00026125,2]
[422665188,1779223852000,-400.0,0.00026125,2]
[422665190,1779223852000,-400.0,0.00026125,2]
[422665189,1779223852000,-400.0,0.00026125,2]
[422665193,1779223852000,-500.0,0.00026134,2]
[422665128,1779223852000,-500.0,0.00024658,2]
[422665177,1779223852000,-1250.0,0.00026125,2]
[422665161,1779223852000,-151.0,0.000258,2]
[422665194,1779223852000,-500.0,0.00026134,2]
[422665164,1779223852000,-362.1644251,0.00025875,2]
[422665165,1779223852000,-803.1,0.000259,7]
[422665129,1779223852000,-500.0,0.00024658,2]
[422665138,1779223852000,-151.0,0.00025,2]
[422665139,1779223852000,-20678.64053435,0.00025,2]
[422665131,1779223852000,-500.0,0.00024658,2]
[422665130,1779223852000,-500.0,0.00024658,2]
[422665132,1779223852000,-500.0,0.00024658,2]
[422665134,1779223852000,-477.72,0.00024658,2]
[422665135,1779223852000,-27650.0,0.000249,2]
[422665136,1779223852000,-1122.7,0.00024946,7]
[422665137,1779223852000,-151.0,0.00025,2]
[422665141,1779223852000,-208.58623393,0.00025,3]
[422665154,1779223852000,-1122.7,0.00025523,2]
[422665153,1779223852000,-5453.24136555,0.000255,2]
[422665152,1779223852000,-537.95,0.00025478,4]
[422665133,1779223852000,-420.17768635,0.00024658,2]
[422665149,1779223852000,-5453.24136555,0.000253,2]
[422665151,1779223852000,-500.0,0.00025478,4]
[422665158,1779223852000,-324.0,0.00025775,7]
[422665157,1779223852000,-231.7,0.00025644,2]
[422665162,1779223852000,-5453.24136555,0.000258,2]
[422665155,1779223852000,-3806.18,0.0002557,7]
[422665150,1779223852000,-500.0,0.00025478,4]
[422665140,1779223852000,-5453.24136555,0.00025,2]
[422665159,1779223852000,-206.64,0.00025782,2]
[422665144,1779223852000,-2000.0,0.00025137,2]
[422665148,1779223852000,-362.1644251,0.00025266,2]
[422665146,1779223852000,-600.0,0.00025138,7]
[422665145,1779223852000,-1200.0,0.00025137,2]
[422665147,1779223852000,-1122.7,0.00025234,2]
[422665143,1779223852000,-800.0,0.00025127,2]
[422665142,1779223852000,-5231.64,0.00025071,7]
[422665223,1779223853000,-1931.77013467,0.00027111,2]
[422665237,1779223853000,-212.5635234,0.00027397,2]
[422665232,1779223853000,-1122.7,0.00027253,2]
[422665234,1779223853000,-178.36026588,0.000273,30]
[422665231,1779223853000,-503.0,0.00027137,2]
[422665224,1779223853000,-150.0,0.00027123,20]
[422665228,1779223853000,-1569.0,0.00027123,2]
[422665227,1779223853000,-1585.0,0.00027123,2]
[422665226,1779223853000,-1813.00454553,0.00027123,2]
[422665229,1779223853000,-392.61812366,0.00027123,2]
[422665222,1779223853000,-5453.24136555,0.000271,2]
[422665238,1779223853000,-3257.75298323,0.00027397,2]
[422665236,1779223853000,-324.0,0.00027386,7]
[422665235,1779223853000,-600.0,0.0002733,7]
[422665243,1779223853000,-1500.0,0.00027397,2]
[422665242,1779223853000,-150.0,0.00027397,2]
[422665241,1779223853000,-500.0,0.00027397,2]
[422665233,1779223853000,-5453.24136555,0.000273,2]
[422665239,1779223853000,-3257.75298322,0.00027397,2]
[422665250,1779223853000,-300.0,0.00027397,2]
[422665254,1779223853000,-151.0,0.00027397,2]
[422665255,1779223853000,-151.0,0.00027397,2]
[422665225,1779223853000,-18117.0,0.00027123,2]
[422665248,1779223853000,-151.0,0.00027397,2]
[422665240,1779223853000,-242.0644491,0.00027397,7]
[422665221,1779223853000,-362.1644251,0.00027093,2]
[422665204,1779223853000,-5453.24136555,0.000263,2]
[422665219,1779223853000,-3544.0,0.00027,2]
[422665246,1779223853000,-151.0,0.00027397,2]
[422665196,1779223853000,-500.0,0.00026134,2]
[422665206,1779223853000,-1122.7,0.00026388,2]
[422665195,1779223853000,-500.0,0.00026134,2]
[422665197,1779223853000,-500.0,0.00026134,2]
[422665198,1779223853000,-500.0,0.00026134,2]
[422665199,1779223853000,-500.0,0.00026134,2]
[422665201,1779223853000,-280.0,0.00026134,2]
[422665205,1779223853000,-5530.0,0.000263,5]
[422665200,1779223853000,-500.0,0.00026134,2]
[422665202,1779223853000,-1300.0,0.00026234,7]
[422665203,1779223853000,-382.3,0.00026296,2]
[422665208,1779223853000,-362.1644251,0.00026484,2]
[422665218,1779223853000,-625.0,0.00027,2]
[422665209,1779223853000,-5453.24136555,0.000265,2]
[422665207,1779223853000,-284.63765076,0.00026397,2]
[422665210,1779223853000,-150.0,0.00026594,90]
[422665214,1779223853000,-5453.24136555,0.000268,2]
[422665215,1779223853000,-863.57261544,0.0002693,2]
[422665216,1779223853000,-1122.7,0.00026964,2]
[422665211,1779223853000,-154.03673677,0.00026594,90]
[422665213,1779223853000,-1122.7,0.00026676,7]
[422665217,1779223853000,-2000.0,0.00027,2]
[422665212,1779223853000,-163.0,0.00026623,3]
[422665220,1779223853000,-2575.529742,0.0002701,2]
[422665230,1779223853000,-1132.0,0.00027123,2]
[422665245,1779223853000,-1465.85,0.00027397,2]
[422665253,1779223853000,-151.0,0.00027397,2]
[422665244,1779223853000,-282.950379,0.00027397,7]
[422665282,1779223853000,-500.0,0.000274,2]
[422665280,1779223853000,-500.0,0.000274,2]
[422665283,1779223853000,-500.0,0.000274,2]
[422665285,1779223853000,-500.0,0.000274,2]
[422665286,1779223853000,-500.0,0.000274,2]
[422665288,1779223853000,-500.0,0.000274,2]
[422665287,1779223853000,-500.0,0.000274,2]
[422665294,1779223853000,-500.0,0.000274,2]
[422665284,1779223853000,-500.0,0.000274,2]
[422665292,1779223853000,-500.0,0.000274,2]
[422665289,1779223853000,-500.0,0.000274,2]
[422665290,1779223853000,-500.0,0.000274,2]
[422665293,1779223853000,-500.0,0.000274,2]
[422665296,1779223853000,-500.0,0.000274,2]
[422665304,1779223853000,-639.67,0.000274,2]
[422665305,1779223853000,-3806.18,0.00027427,7]
[422665297,1779223853000,-500.0,0.000274,2]
[422665302,1779223853000,-833.53,0.000274,2]
[422665303,1779223853000,-959.52,0.000274,2]
[422665295,1779223853000,-500.0,0.000274,2]
[422665299,1779223853000,-500.0,0.000274,2]
[422665298,1779223853000,-500.0,0.000274,2]
[422665300,1779223853000,-500.0,0.000274,2]
[422665301,1779223853000,-605.27,0.000274,2]
[422665256,1779223853000,-151.0,0.00027397,2]
[422665281,1779223853000,-637.65,0.000274,2]
[422665278,1779223853000,-6865.5,0.000274,14]
[422665291,1779223853000,-500.0,0.000274,2]
[422665277,1779223853000,-171.87369054,0.00027397,7]
[422665247,1779223853000,-151.0,0.00027397,2]
[422665279,1779223853000,-265.39,0.000274,7]
[422665252,1779223853000,-151.0,0.00027397,2]
[422665249,1779223853000,-290.170748,0.00027397,2]
[422665251,1779223853000,-151.0,0.00027397,2]
[422665257,1779223853000,-338.091489,0.00027397,2]
[422665259,1779223853000,-338.091489,0.00027397,2]
[422665268,1779223853000,-254.52837,0.00027397,2]
[422665263,1779223853000,-338.091489,0.00027397,2]
[422665267,1779223853000,-254.52837,0.00027397,2]
[422665269,1779223853000,-254.52837,0.00027397,2]
[422665258,1779223853000,-338.091489,0.00027397,2]
[422665260,1779223853000,-338.091489,0.00027397,2]
[422665274,1779223853000,-151.0,0.00027397,2]
[422665276,1779223853000,-42809.91,0.00027397,10]
[422665266,1779223853000,-254.52837,0.00027397,2]
[422665275,1779223853000,-151.0,0.00027397,2]
[422665272,1779223853000,-254.52837,0.00027397,2]
[422665273,1779223853000,-254.52837,0.00027397,2]
[422665270,1779223853000,-254.52837,0.00027397,2]
[422665261,1779223853000,-338.091489,0.00027397,2]
[422665262,1779223853000,-338.091489,0.00027397,2]
[422665265,1779223853000,-749.6,0.00027397,2]
[422665264,1779223853000,-338.091489,0.00027397,2]
[422665271,1779223853000,-254.52837,0.00027397,2]
[422665347,1779223854000,-319.2,0.0002863,2]
[422665353,1779223854000,-1779.45,0.00028661,7]
[422665345,1779223854000,-1095.0,0.000286,7]
[422665351,1779223854000,-1493.0,0.0002863,2]
[422665342,1779223854000,-1587.0,0.0002853,3]
[422665339,1779223854000,-151.0,0.000285,2]
[422665341,1779223854000,-2314.0,0.0002853,3]
[422665344,1779223854000,-152.0,0.00028553,3]
[422665340,1779223854000,-2314.0,0.0002853,3]
[422665343,1779223854000,-2314.0,0.0002853,3]
[422665355,1779223854000,-1492.98,0.00028661,7]
[422665334,1779223854000,-338.0,0.00028327,2]
[422665346,1779223854000,-1779.45,0.0002863,2]
[422665364,1779223854000,-606.27,0.00028693,30]
[422665354,1779223854000,-319.2,0.00028661,7]
[422665350,1779223854000,-606.27,0.0002863,2]
[422665349,1779223854000,-1778.78,0.0002863,2]
[422665352,1779223854000,-318.48,0.0002863,2]
[422665356,1779223854000,-1778.78,0.00028661,7]
[422665358,1779223854000,-1493.0,0.00028661,7]
[422665357,1779223854000,-606.27,0.00028661,7]
[422665360,1779223854000,-1779.45,0.00028693,30]
[422665359,1779223854000,-318.48,0.00028661,7]
[422665361,1779223854000,-319.2,0.00028693,30]
[422665366,1779223854000,-318.48,0.00028693,30]
[422665338,1779223854000,-265.39,0.000285,7]